fUST/lending_fUST_20250316
["ID","MTS","AMOUNT","RATE_DAILY","PERIOD"]
[356211809,1742071848811,-500.0,8.767e-05,2]
[356211810,1742071848821,-500.0,8.767e-05,2]
[356211811,1742071848830,-500.0,8.767e-05,2]
[356211812,1742071848840,-500.0,8.767e-05,2]
[356211813,1742071848850,-500.0,8.767e-05,2]
[356211814,1742071848859,-500.0,8.767e-05,2]
[356211815,1742071848868,-500.0,8.767e-05,2]
[356211816,1742071848878,-500.0,8.767e-05,2]
[356211817,1742071848887,-500.0,8.767e-05,2]
[356211818,1742071848896,-500.0,8.767e-05,2]
[356211819,1742071848907,-500.0,8.767e-05,2]
[356211820,1742071848917,-500.0,8.767e-05,2]
[356211821,1742071848927,-500.0,8.767e-05,2]
[356211822,1742071848936,-500.0,8.767e-05,2]
[356211823,1742071848946,-283.08,8.767e-05,2]
[356211824,1742071848956,-500.0,8.767e-05,2]
[356211825,1742071848965,-4297.05,8.767e-05,2]
[356211826,1742071848974,-500.0,8.767e-05,2]
[356211827,1742071848984,-500.0,8.767e-05,2]
[356211828,1742071848994,-621.31,8.767e-05,2]
[356211829,1742071849003,-500.0,8.767e-05,2]
[356211830,1742071849012,-500.0,8.767e-05,2]
[356211831,1742071849022,-1032.07,8.767e-05,2]
[356211832,1742071849032,-500.0,8.767e-05,2]
[356211833,1742071849042,-500.0,8.767e-05,2]
[356211834,1742071849052,-500.0,8.767e-05,2]
[356211835,1742071849062,-500.0,8.767e-05,2]
[356211836,1742071849072,-500.0,8.767e-05,2]
[356211837,1742071849082,-500.0,8.767e-05,2]
[356211838,1742071849092,-500.0,8.767e-05,2]
[356211839,1742071849102,-500.0,8.767e-05,2]
[356211840,1742071849112,-500.0,8.767e-05,2]
[356211841,1742071849122,-500.0,8.767e-05,2]
[356211842,1742071849132,-500.0,8.767e-05,2]
[356211843,1742071849141,-500.0,8.767e-05,2]
[356211844,1742071849151,-500.0,8.767e-05,2]
[356211845,1742071849161,-654.58,8.767e-05,2]
[356211846,1742071849171,-500.0,8.767e-05,2]
[356211847,1742071849180,-521.37025493,8.767e-05,2]
[356211848,1742071849190,-520.91400355,8.767e-05,2]
[356211849,1742071849199,-500.0,8.767e-05,2]
[356211850,1742071849208,-500.0,8.767e-05,2]
[356211851,1742071849218,-500.0,8.767e-05,2]
[356211852,1742071849228,-500.0,8.767e-05,2]
[356211853,1742071849237,-500.0,8.767e-05,2]
[356211854,1742071849247,-500.0,8.767e-05,2]
[356211855,1742071849257,-1004.18,8.767e-05,2]
[356211856,1742071849266,-500.0,8.767e-05,2]
[356211857,1742071849276,-739.21,8.767e-05,2]
[356211858,1742071849285,-500.0,8.767e-05,2]
[356211859,1742071849295,-500.0,8.767e-05,2]
[356211860,1742071849304,-500.0,8.767e-05,2]
[356211861,1742071849314,-500.0,8.767e-05,2]
[356211862,1742071849324,-638.96818033,8.767e-05,2]
[356211863,1742071849333,-500.0,8.767e-05,2]
[356211864,1742071849343,-500.0,8.767e-05,2]
[356211865,1742071849353,-1284.61,8.767e-05,2]
[356211866,1742071849364,-1678.5,8.767e-05,2]
[356211867,1742071849376,-528.53801763,8.767e-05,2]
[356211868,1742071849387,-2233.32,8.767e-05,2]
[356211869,1742071849398,-1939.02,8.767e-05,2]
[356211870,1742071849408,-500.0,8.767e-05,2]
[356211871,1742071849418,-500.0,8.767e-05,2]
[356211872,1742071849427,-1005.33,8.767e-05,2]
[356211873,1742071849437,-5546.93,8.767e-05,2]
[356211874,1742071849448,-500.0,8.767e-05,2]
[356211875,1742071849457,-500.0,8.767e-05,2]
[356211876,1742071849467,-500.0,8.767e-05,2]
[356211877,1742071849477,-711.36,8.767e-05,2]
[356211878,1742071849487,-500.0,8.767e-05,2]
[356211879,1742071849497,-500.0,8.767e-05,2]
[356211880,1742071849507,-563.55,8.767e-05,2]
[356211881,1742071849517,-500.0,8.767e-05,2]
[356211882,1742071849527,-500.0,8.767e-05,2]
[356211883,1742071849537,-1329.64,8.767e-05,2]
[356211884,1742071849547,-500.0,8.767e-05,2]
[356211885,1742071849557,-656.52,8.767e-05,2]
[356211886,1742071849567,-500.0,8.767e-05,2]
[356211887,1742071849621,-500.0,8.767e-05,2]
[356211888,1742071849634,-1859.14,8.767e-05,2]
[356211889,1742071849643,-500.0,8.767e-05,2]
[356211890,1742071849654,-500.0,8.767e-05,2]
[356211891,1742071849663,-67929.79,8.767e-05,2]
[356211892,1742071849674,-3704.22,8.767e-05,2]
[356211893,1742071849684,-500.0,8.767e-05,2]
[356211894,1742071849693,-3971.8,8.767e-05,2]
[356211895,1742071849703,-500.0,8.767e-05,2]
[356211896,1742071849716,-643.44,8.767e-05,2]
[356211897,1742071849726,-1701.94,8.767e-05,2]
[356211898,1742071849735,-500.0,8.767e-05,2]
[356211899,1742071849745,-500.0,8.767e-05,2]
[356211900,1742071849755,-1179.74,8.767e-05,2]
[356211901,1742071849766,-500.0,8.767e-05,2]
[356211902,1742071849776,-513.83,8.767e-05,2]
[356211903,1742071849786,-500.0,8.767e-05,2]
[356211904,1742071849798,-500.0,8.767e-05,2]
[356211905,1742071849808,-500.0,8.767e-05,2]
[356211906,1742071849818,-2643.55,8.767e-05,2]
[356211907,1742071849828,-605.46,8.767e-05,2]
[356211908,1742071849838,-532.86,8.767e-05,2]
[356211909,1742071849848,-500.0,8.767e-05,2]
[356211910,1742071849858,-688.13,8.767e-05,2]
[356211911,1742071849867,-442.28407806,8.767e-05,2]
[356211912,1742071849878,-500.0,8.767e-05,2]
[356211913,1742071849888,-500.0,8.767e-05,2]
[356211914,1742071849899,-1783.83,8.767e-05,2]
[356211915,1742071849909,-711.75,8.767e-05,2]
[356211916,1742071849919,-500.0,8.767e-05,2]
[356211917,1742071849929,-500.0,8.767e-05,2]
[356211918,1742071849939,-3655.95,8.767e-05,2]
[356211919,1742071849949,-420.0,8.929e-05,2]
[356211920,1742071849959,-500.0,9.041e-05,2]
[356211921,1742071849969,-500.0,9.041e-05,2]
[356211922,1742071849978,-500.0,9.041e-05,2]
[356211923,1742071849987,-500.0,9.041e-05,2]
[356211924,1742071849996,-500.0,9.041e-05,2]
[356211925,1742071850005,-500.0,9.041e-05,2]
[356211926,1742071850015,-500.0,9.041e-05,2]
[356211927,1742071850024,-500.0,9.041e-05,2]
[356211928,1742071850033,-351.96,9.041e-05,2]
[356211929,1742071850043,-500.0,9.041e-05,2]
[356211930,1742071850052,-648.94,9.041e-05,2]
[356211931,1742071850061,-329.55,9.041e-05,2]
[356211932,1742071850071,-500.0,9.041e-05,2]
[356211933,1742071850080,-500.0,9.041e-05,2]
[356211934,1742071850090,-599.31,9.041e-05,2]
[356211935,1742071850099,-662.6,9.041e-05,2]
[356211936,1742071850109,-500.0,9.041e-05,2]
[356211937,1742071850119,-500.0,9.041e-05,2]
[356211938,1742071850128,-500.0,9.041e-05,2]
[356211939,1742071850137,-500.0,9.041e-05,2]
[356211940,1742071850147,-500.0,9.041e-05,2]
[356211941,1742071850156,-500.0,9.041e-05,2]
[356211942,1742071850166,-500.0,9.041e-05,2]
[356211943,1742071850175,-500.0,9.041e-05,2]
[356211944,1742071850185,-500.0,9.041e-05,2]
[356211945,1742071850194,-603.35,9.041e-05,2]
[356211946,1742071850203,-500.0,9.041e-05,2]
[356211947,1742071850212,-500.0,9.041e-05,2]
[356211948,1742071850222,-157.39,9.041e-05,2]
[356211949,1742071850231,-500.0,9.041e-05,2]
[356211950,1742071850240,-500.0,9.041e-05,2]
[356211951,1742071850250,-500.0,9.041e-05,2]
[356211952,1742071850259,-500.0,9.041e-05,2]
[356211953,1742071850269,-500.0,9.041e-05,2]
[356211954,1742071850278,-500.0,9.041e-05,2]
[356211955,1742071850288,-500.0,9.041e-05,2]
[356211956,1742071850297,-527.05,9.041e-05,2]
[356211957,1742071850307,-500.0,9.041e-05,2]
[356211958,1742071850316,-681.49,9.041e-05,2]
[356211959,1742071850325,-500.0,9.041e-05,2]
[356211960,1742071850335,-500.0,9.041e-05,2]
[356211961,1742071850344,-500.0,9.041e-05,2]
[356211962,1742071850353,-186.36594898,9.041e-05,2]
[356211963,1742071850362,-500.0,9.041e-05,2]
[356211964,1742071850371,-500.0,9.041e-05,2]
[356211965,1742071850382,-500.0,9.041e-05,2]
[356211966,1742071850391,-500.0,9.041e-05,2]
[356211967,1742071850400,-500.0,9.041e-05,2]
[356211968,1742071850409,-500.0,9.041e-05,2]
[356211969,1742071850418,-359.29,9.041e-05,2]
[356211970,1742071850428,-500.0,9.041e-05,2]
[356211971,1742071850437,-500.0,9.041e-05,2]
[356211972,1742071850446,-500.0,9.041e-05,2]
[356211973,1742071850456,-500.0,9.041e-05,2]
[356211974,1742071850465,-365.0,9.041e-05,2]
[356211975,1742071850474,-500.0,9.041e-05,2]
[356211976,1742071850484,-500.0,9.041e-05,2]
[356211977,1742071850493,-500.0,9.041e-05,2]
[356211978,1742071850502,-500.0,9.041e-05,2]
[356211979,1742071850511,-4297.05,9.041e-05,2]
[356211980,1742071850520,-500.0,9.041e-05,2]
[356211981,1742071850530,-287.42,9.041e-05,2]
[356211982,1742071850539,-621.31,9.041e-05,2]
[356211983,1742071850549,-500.0,9.041e-05,2]
[356211984,1742071850559,-1032.07,9.041e-05,2]
[356211985,1742071850568,-500.0,9.041e-05,2]
[356211986,1742071850578,-500.0,9.041e-05,2]
[356211987,1742071850587,-500.0,9.041e-05,2]
[356211988,1742071850597,-500.0,9.041e-05,2]
[356211989,1742071850607,-500.0,9.041e-05,2]
[356211990,1742071850616,-500.0,9.041e-05,2]
[356211991,1742071850630,-500.0,9.041e-05,2]
[356211992,1742071850639,-500.0,9.041e-05,2]
[356211993,1742071850649,-537.8750143,9.041e-05,2]
[356211994,1742071850658,-548.02207951,9.041e-05,2]
[356211995,1742071850669,-500.0,9.041e-05,2]
[356211996,1742071850679,-500.0,9.041e-05,2]
[356211997,1742071850688,-654.58,9.041e-05,2]
[356211998,1742071850698,-500.0,9.041e-05,2]
[356211999,1742071850708,-549.75,9.041e-05,2]
[356212000,1742071850718,-500.0,9.041e-05,2]
[356212001,1742071850728,-500.0,9.041e-05,2]
[356212002,1742071850738,-500.0,9.041e-05,2]
[356212003,1742071850747,-500.0,9.041e-05,2]
[356212004,1742071850756,-500.0,9.041e-05,2]
[356212005,1742071850765,-1004.18,9.041e-05,2]
[356212006,1742071850775,-500.0,9.041e-05,2]
[356212007,1742071850784,-739.21,9.041e-05,2]
[356212008,1742071850793,-500.0,9.041e-05,2]
[356212009,1742071850803,-500.0,9.041e-05,2]
[356212010,1742071850812,-500.0,9.041e-05,2]
[356212011,1742071850821,-500.0,9.041e-05,2]
[356212012,1742071850831,-500.0,9.041e-05,2]
[356212013,1742071850840,-500.0,9.041e-05,2]
[356212014,1742071850850,-715.26348113,9.041e-05,2]
[356212015,1742071851049,-569.34651887,9.041e-05,2]
[356212016,1742071851059,-430.65348113,9.041e-05,2]
[356212017,1742071851296,-1247.84651887,9.041e-05,2]
[356212018,1742071851306,-2233.32,9.041e-05,2]
[356212019,1742071851317,-1939.02,9.041e-05,2]
[356212020,1742071851328,-241.25407479,9.041e-05,2]
[356212021,1742071851344,-258.74592521,9.041e-05,2]
[356212022,1742071851353,-1005.33,9.041e-05,2]
[356212023,1742071851363,-5546.93,9.041e-05,2]
[356212024,1742071851373,-500.0,9.041e-05,2]
[356212025,1742071851382,-500.0,9.041e-05,2]
[356212026,1742071851392,-711.36,9.041e-05,2]
[356212027,1742071851401,-500.0,9.041e-05,2]
[356212028,1742071851411,-563.55,9.041e-05,2]
[356212029,1742071851420,-500.0,9.041e-05,2]
[356212030,1742071851430,-500.0,9.041e-05,2]
[356212031,1742071851440,-1329.64,9.041e-05,2]
[356212032,1742071851449,-500.0,9.041e-05,2]
[356212033,1742071851459,-656.52,9.041e-05,2]
[356212034,1742071851469,-500.0,9.041e-05,2]
[356212035,1742071851478,-1859.14,9.041e-05,2]
[356212036,1742071851488,-500.0,9.041e-05,2]
[356212037,1742071851497,-500.0,9.041e-05,2]
[356212038,1742071851507,-44132.51843011,9.041e-05,2]
[356212039,1742071851519,-23797.27156989,9.041e-05,2]
[356212040,1742071851528,-761.8470159,9.041e-05,2]
[356212079,1742073032592,-474.6925,8.119e-05,2]
[356212119,1742073041794,-0.00749348,8.119e-05,2]
[356212123,1742073043425,-310.25779551,8.119e-05,2]
[356212124,1742073043545,-1265.27759025,8.119e-05,2]
[356212125,1742073043558,-300.0,8.217e-05,2]
[356212126,1742073043568,-484.957789,8.218e-05,2]
[356212127,1742073046461,-116.20283012,8.218e-05,2]
[356212128,1742073046471,-500.0,8.218e-05,2]
[356212129,1742073046481,-500.0,8.218e-05,2]
[356212130,1742073046491,-500.0,8.218e-05,2]
[356212131,1742073046502,-486.90431534,8.218e-05,2]
[356212132,1742073046513,-500.0,8.219e-05,2]
[356212133,1742073046525,-500.0,8.219e-05,2]
[356212134,1742073046535,-500.0,8.219e-05,2]
[356212135,1742073046544,-500.0,8.219e-05,2]
[356212136,1742073046555,-500.0,8.219e-05,2]
[356212137,1742073046564,-500.0,8.219e-05,2]
[356212138,1742073046575,-500.0,8.219e-05,2]
[356212139,1742073046587,-500.0,8.219e-05,2]
[356212140,1742073046596,-500.0,8.219e-05,2]
[356212141,1742073046606,-500.0,8.219e-05,2]
[356212142,1742073046615,-395.86,8.219e-05,2]
[356212143,1742073046624,-500.0,8.219e-05,2]
[356212144,1742073046864,-522.97,8.219e-05,2]
[356212145,1742073046874,-500.0,8.219e-05,2]
[356212146,1742073046884,-500.0,8.219e-05,2]
[356212147,1742073046894,-500.0,8.219e-05,2]
[356212148,1742073046903,-500.0,8.219e-05,2]
[356212149,1742073046912,-500.0,8.219e-05,2]
[356212150,1742073046922,-500.0,8.219e-05,2]
[356212151,1742073046931,-500.0,8.219e-05,2]
[356212152,1742073046940,-500.0,8.219e-05,2]
[356212153,1742073046950,-179.04780732,8.219e-05,2]
[356212154,1742073046959,-500.0,8.219e-05,2]
[356212155,1742073046968,-500.0,8.219e-05,2]
[356212156,1742073046979,-500.0,8.219e-05,2]
[356212157,1742073046989,-500.0,8.219e-05,2]
[356212158,1742073046998,-500.0,8.219e-05,2]
[356212159,1742073047007,-500.0,8.219e-05,2]
[356212160,1742073047016,-500.0,8.219e-05,2]
[356212161,1742073047026,-500.0,8.219e-05,2]
[356212162,1742073047040,-500.0,8.219e-05,2]
[356212163,1742073047050,-500.0,8.219e-05,2]
[356212164,1742073047059,-502.79,8.219e-05,2]
[356212165,1742073047069,-500.0,8.219e-05,2]
[356212166,1742073047079,-500.0,8.219e-05,2]
[356212167,1742073047088,-500.0,8.219e-05,2]
[356212168,1742073047098,-500.0,8.219e-05,2]
[356212169,1742073047107,-500.0,8.219e-05,2]
[356212170,1742073047119,-500.0,8.219e-05,2]
[356212171,1742073047128,-274.70715603,8.219e-05,2]
[356212172,1742073047138,-452.14741655,8.219e-05,2]
[356212173,1742073047148,-500.0,8.219e-05,2]
[356212174,1742073047158,-500.0,8.219e-05,2]
[356212175,1742073047167,-500.0,8.219e-05,2]
[356212176,1742073047176,-567.91,8.219e-05,2]
[356212177,1742073047186,-500.0,8.219e-05,2]
[356212178,1742073047196,-304.5,8.219e-05,2]
[356212179,1742073047205,-500.0,8.219e-05,2]
[356212180,1742073047215,-500.0,8.219e-05,2]
[356212181,1742073047225,-500.0,8.219e-05,2]
[356212182,1742073047234,-500.0,8.219e-05,2]
[356212183,1742073047244,-500.0,8.219e-05,2]
[356212184,1742073047253,-500.0,8.219e-05,2]
[356212185,1742073047263,-500.0,8.219e-05,2]
[356212186,1742073047272,-500.0,8.219e-05,2]
[356212187,1742073047282,-278.45,8.219e-05,2]
[356212188,1742073047291,-500.0,8.219e-05,2]
[356212189,1742073047301,-500.0,8.219e-05,2]
[356212190,1742073047310,-414.15,8.219e-05,2]
[356212191,1742073047319,-500.0,8.219e-05,2]
[356212192,1742073047329,-500.0,8.219e-05,2]
[356212193,1742073047340,-3198.96,8.219e-05,2]
[356212194,1742073047349,-395.00443557,8.219e-05,2]
[356212195,1742073047359,-47.21834747,8.219e-05,2]
[356212196,1742073047371,-452.78165253,8.219e-05,2]
[356212197,1742073047381,-500.0,8.219e-05,2]
[356212198,1742073047390,-500.0,8.219e-05,2]
[356212199,1742073047399,-500.0,8.219e-05,2]
[356212200,1742073047409,-500.0,8.219e-05,2]
[356212201,1742073047419,-500.0,8.219e-05,2]
[356212202,1742073047428,-545.48,8.219e-05,2]
[356212203,1742073047437,-500.0,8.219e-05,2]
[356212204,1742073047447,-478.28,8.219e-05,2]
[356212205,1742073047456,-500.0,8.219e-05,2]
[356212206,1742073047465,-500.0,8.219e-05,2]
[356212207,1742073047475,-836.82,8.219e-05,2]
[356212208,1742073047484,-616.01,8.219e-05,2]
[356212209,1742073047493,-504.41618005,8.219e-05,2]
[356212210,1742073047503,-220.38,8.219e-05,2]
[356212211,1742073047512,-500.0,8.219e-05,2]
[356212212,1742073047521,-4622.44,8.219e-05,2]
[356212213,1742073047531,-438.42,8.219e-05,2]
[356212214,1742073047541,-1398.75,8.219e-05,2]
[356212215,1742073047550,-1615.85,8.219e-05,2]
[356212216,1742073047560,-1070.51,8.219e-05,2]
[356212217,1742073047570,-500.0,8.219e-05,2]
[356212218,1742073047580,-1861.1,8.219e-05,2]
[356212219,1742073047589,-837.77,8.219e-05,2]
[356212220,1742073047599,-500.0,8.219e-05,2]
[356212221,1742073047609,-547.1,8.219e-05,2]
[356212222,1742073047618,-500.0,8.219e-05,2]
[356212223,1742073047628,-500.0,8.219e-05,2]
[356212224,1742073047637,-592.8,8.219e-05,2]
[356212225,1742073047647,-563.01,8.219e-05,2]
[356212226,1742073047656,-500.0,8.219e-05,2]
[356212227,1742073047667,-1108.03,8.219e-05,2]
[356212228,1742073047676,-195.39,8.219e-05,2]
[356212229,1742073047686,-500.0,8.219e-05,2]
[356212230,1742073047696,-500.0,8.219e-05,2]
[356212231,1742073047707,-1549.28,8.219e-05,2]
[356212232,1742073047718,-639.6,8.219e-05,2]
[356212233,1742073047729,-3475.33,8.219e-05,2]
[356212234,1742073047739,-56608.16,8.219e-05,2]
[356212235,1742073047748,-154.79341472,8.219e-05,2]
[356212236,1742073047759,-500.0,8.219e-05,2]
[356212237,1742073047769,-500.0,8.219e-05,2]
[356212238,1742073047779,-500.0,8.219e-05,2]
[356212239,1742073047788,-500.0,8.219e-05,2]
[356212240,1742073047797,-3209.45,8.219e-05,2]
[356212241,1742073047806,-500.0,8.219e-05,2]
[356212242,1742073047815,-1489.2,8.219e-05,2]
[356212243,1742073047825,-500.0,8.219e-05,2]
[356212244,1742073047834,-500.0,8.219e-05,2]
[356212245,1742073047843,-500.0,8.219e-05,2]
[356212246,1742073047852,-500.0,8.219e-05,2]
[356212247,1742073047862,-500.0,8.219e-05,2]
[356212248,1742073047871,-1032.28,8.219e-05,2]
[356212249,1742073047880,-500.0,8.219e-05,2]
[356212250,1742073047890,-602.11,8.219e-05,2]
[356212251,1742073047899,-500.0,8.219e-05,2]
[356212252,1742073047908,-2313.11,8.219e-05,2]
[356212253,1742073047917,-500.0,8.219e-05,2]
[356212254,1742073047926,-622.78,8.219e-05,2]
[356212255,1742073047935,-529.78,8.219e-05,2]
[356212256,1742073047944,-500.0,8.219e-05,2]
[356212257,1742073047953,-500.0,8.219e-05,2]
[356212258,1742073047962,-633.16,8.219e-05,2]
[356212259,1742073047971,-540.79,8.219e-05,2]
[356212260,1742073047981,-1560.85,8.219e-05,2]
[356212261,1742073047990,-500.0,8.219e-05,2]
[356212262,1742073047999,-256.5864443,8.219e-05,2]
[356212263,1742073048011,-243.4135557,8.219e-05,2]
[356212264,1742073048020,-500.0,8.219e-05,2]
[356212265,1742073048030,-860.06,8.219e-05,2]
[356212266,1742073048042,-3580.88,8.219e-05,2]
[356212267,1742073048052,-500.0,8.219e-05,2]
[356212268,1742073048062,-500.0,8.219e-05,2]
[356212269,1742073048072,-552.16,8.219e-05,2]
[356212270,1742073048083,-500.0,8.493e-05,2]
[356212271,1742073048093,-500.0,8.493e-05,2]
[356212272,1742073048104,-500.0,8.493e-05,2]
[356212273,1742073048115,-500.0,8.493e-05,2]
[356212274,1742073048127,-500.0,8.493e-05,2]
[356212275,1742073048141,-500.0,8.493e-05,2]
[356212276,1742073048152,-500.0,8.493e-05,2]
[356212277,1742073048163,-500.0,8.493e-05,2]
[356212278,1742073048174,-500.0,8.493e-05,2]
[356212279,1742073048184,-413.4864443,8.493e-05,2]
[356212280,1742073123171,7729.7015048,7.979e-05,2]
[356212281,1742073123259,-300.0,8.218e-05,2]
[356212282,1742073123283,-78.6999,8.219e-05,2]
[356212283,1742073372485,13732.59231593,0.00011,6]
[356212284,1742073436671,41494.08324979,8e-05,2]
[356212285,1742073486772,-950.0,0.0002,120]
[356212341,1742074243608,-420.81243338,8.218e-05,2]
[356212342,1742074243620,-220.76714615,8.218e-05,2]
[356212343,1742074243631,-95.58850566,8.218e-05,2]
[356212344,1742074243718,-204.41149434,8.218e-05,2]
[356212345,1742074243728,-206.49848066,8.219e-05,2]
[356212346,1742074573422,2014.3,8e-05,2]
[356212351,1742075431924,-1325.35214156,8.119e-05,2]
[356212352,1742075431934,-300.0,8.218e-05,2]
[356212353,1742075431944,-500.0,8.219e-05,2]
[356212354,1742075431954,-500.0,8.219e-05,2]
[356212355,1742075431964,-500.0,8.219e-05,2]
[356212356,1742075431974,-578.66778675,8.219e-05,2]
[356212357,1742075431984,-401.45679077,8.219e-05,2]
[356212358,1742075431994,-500.0,8.219e-05,2]
[356212359,1742075432004,-624.48,8.219e-05,2]
[356212360,1742075432014,-500.0,8.219e-05,2]
[356212361,1742075432024,-500.0,8.219e-05,2]
[356212362,1742075432033,-521.89,8.219e-05,2]
[356212363,1742075432043,-500.0,8.219e-05,2]
[356212364,1742075432053,-500.0,8.219e-05,2]
[356212365,1742075432063,-647.17,8.219e-05,2]
[356212366,1742075432072,-500.0,8.219e-05,2]
[356212368,1742075432081,-500.0,8.219e-05,2]
[356212369,1742075432091,-500.0,8.219e-05,2]
[356212370,1742075432100,-500.0,8.219e-05,2]
[356212371,1742075432110,-500.0,8.219e-05,2]
[356212372,1742075432119,-541.99,8.219e-05,2]
[356212373,1742075432128,-500.0,8.219e-05,2]
[356212374,1742075432138,-500.0,8.219e-05,2]
[356212375,1742075432147,-591.45,8.219e-05,2]
[356212376,1742075432156,-500.0,8.219e-05,2]
[356212377,1742075432170,-500.0,8.219e-05,2]
[356212378,1742075432180,-500.0,8.219e-05,2]
[356212379,1742075432190,-500.0,8.219e-05,2]
[356212380,1742075432200,-500.0,8.219e-05,2]
[356212381,1742075432210,-500.0,8.219e-05,2]
[356212382,1742075432219,-500.0,8.219e-05,2]
[356212383,1742075432229,-500.0,8.219e-05,2]
[356212384,1742075432239,-500.0,8.219e-05,2]
[356212385,1742075432249,-549.7,8.219e-05,2]
[356212386,1742075432259,-500.0,8.219e-05,2]
[356212387,1742075432269,-500.0,8.219e-05,2]
[356212388,1742075432278,-500.0,8.219e-05,2]
[356212389,1742075432288,-500.0,8.219e-05,2]
[356212390,1742075432299,-500.0,8.219e-05,2]
[356212391,1742075432308,-500.0,8.219e-05,2]
[356212392,1742075432318,-500.0,8.219e-05,2]
[356212393,1742075432328,-500.0,8.219e-05,2]
[356212394,1742075432338,-500.0,8.219e-05,2]
[356212395,1742075432348,-500.0,8.219e-05,2]
[356212396,1742075432357,-544.25,8.219e-05,2]
[356212397,1742075432367,-500.0,8.219e-05,2]
[356212398,1742075432376,-500.0,8.219e-05,2]
[356212399,1742075432385,-500.0,8.219e-05,2]
[356212400,1742075432395,-74.43500776,8.219e-05,2]
[356212401,1742075432408,-425.56499224,8.219e-05,2]
[356212402,1742075432418,-500.0,8.219e-05,2]
[356212403,1742075432427,-234.25,8.219e-05,2]
[356212404,1742075432437,-165.52965583,8.219e-05,2]
[356212449,1742075437681,-0.007303,8.219e-05,2]
[356212453,1742075440041,-334.46304117,8.219e-05,2]
[356212454,1742075440052,-500.0,8.219e-05,2]
[356212455,1742075440062,-94.59695883,8.219e-05,2]
[356212462,1742075443852,-405.40304117,8.219e-05,2]
[356212463,1742075443862,-190.7635557,8.219e-05,2]
[356212464,1742075443872,-500.0,8.219e-05,2]
[356212465,1742075443883,-500.0,8.219e-05,2]
[356212466,1742075443892,-500.0,8.219e-05,2]
[356212467,1742075443902,-33.3319942,8.219e-05,2]
[356212468,1742075443915,-466.6680058,8.219e-05,2]
[356212469,1742075443924,-448.37818686,8.219e-05,2]
[356212470,1742075443936,-500.0,8.219e-05,2]
[356212471,1742075443949,-500.0,8.219e-05,2]
[356212472,1742075443959,-606.78,8.219e-05,2]
[356212473,1742075443969,-500.0,8.219e-05,2]
[356212474,1742075443979,-500.0,8.219e-05,2]
[356212475,1742075443988,-517.76,8.219e-05,2]
[356212476,1742075443998,-299.42,8.219e-05,2]
[356212477,1742075444007,-500.0,8.219e-05,2]
[356212479,1742075444017,-500.0,8.219e-05,2]
[356212481,1742075444027,-500.0,8.219e-05,2]
[356212482,1742075444037,-500.0,8.219e-05,2]
[356212484,1742075444047,-500.0,8.219e-05,2]
[356212486,1742075444057,-500.0,8.219e-05,2]
[356212488,1742075444067,-380.59,8.219e-05,2]
[356212490,1742075444076,-500.0,8.219e-05,2]
[356212492,1742075444086,-406.44891567,8.219e-05,2]
[356212493,1742075444096,-500.0,8.219e-05,2]
[356212494,1742075444105,-500.0,8.219e-05,2]
[356212495,1742075444115,-500.0,8.219e-05,2]
[356212496,1742075444125,-500.0,8.219e-05,2]
[356212497,1742075444134,-500.0,8.219e-05,2]
[356212498,1742075444144,-500.0,8.219e-05,2]
[356212499,1742075444154,-590.34,8.219e-05,2]
[356212500,1742075444164,-500.0,8.219e-05,2]
[356212501,1742075444173,-522.75,8.219e-05,2]
[356212502,1742075444183,-4429.84,8.219e-05,2]
[356212503,1742075444192,-1340.47,8.219e-05,2]
[356212504,1742075444201,-447.9174111,8.219e-05,2]
[356212505,1742075444219,-52.0825889,8.219e-05,2]
[356212506,1742075444228,-1651.76,8.219e-05,2]
[356212507,1742075444238,-801.95,8.219e-05,2]
[356212508,1742075444248,-500.0,8.219e-05,2]